[Event "Late-Titled-Tuesday-Blitz-February-20-2024"]
[Site "Chess.com"]
[Date "2024.02.20"]
[Round "3"]
[White "Jadro9"]
[Black "Bkmzzzzz"]
[Result "1-0"]
[WhiteElo "2629"]
[BlackElo "2421"]
[TimeControl "180+1"]
[EndTime "14:25:47 PST"]
[Termination "Jadro9 won by checkmate"]

1. e4 {[%clk 0:03:00.9]} 1... d6 {[%clk 0:02:59.6]} 2. Nc3 {[%clk 0:02:59.6]}
2... Nf6 {[%clk 0:03:00.2]} 3. g3 {[%clk 0:02:59.6]} 3... e5 {[%clk 0:03:00.4]}
4. Bg2 {[%clk 0:03:00.2]} 4... Be7 {[%clk 0:03:00.9]} 5. Nge2 {[%clk 0:03:00.9]}
5... O-O {[%clk 0:03:01.5]} 6. O-O {[%clk 0:03:01.7]} 6... c6 {[%clk 0:03:01.9]}
7. h3 {[%clk 0:03:02.3]} 7... b5 {[%clk 0:03:02.2]} 8. d3 {[%clk 0:03:03]} 8...
b4 {[%clk 0:03:02.2]} 9. Nb1 {[%clk 0:03:03]} 9... a5 {[%clk 0:02:59.1]} 10. f4
{[%clk 0:03:02.8]} 10... exf4 {[%clk 0:02:49]} 11. Bxf4 {[%clk 0:02:57.8]} 11...
d5 {[%clk 0:02:47.9]} 12. e5 {[%clk 0:02:57.4]} 12... Nh5 {[%clk 0:02:14.5]} 13.
Be3 {[%clk 0:02:53.2]} 13... Nd7 {[%clk 0:02:08.9]} 14. g4 {[%clk 0:02:50.1]}
14... Nxe5 {[%clk 0:02:05.4]} 15. gxh5 {[%clk 0:02:50.6]} 15... h6 {[%clk
0:01:57.3]} 16. Nd2 {[%clk 0:02:50.5]} 16... c5 {[%clk 0:01:47]} 17. Ng3 {[%clk
0:02:48.1]} 17... Ra6 {[%clk 0:01:45.9]} 18. Nf5 {[%clk 0:02:47]} 18... d4
{[%clk 0:01:44.5]} 19. Nxe7+ {[%clk 0:02:40.4]} 19... Qxe7 {[%clk 0:01:45.4]}
20. Bf2 {[%clk 0:02:39.9]} 20... Qg5 {[%clk 0:01:41.3]} 21. Ne4 {[%clk
0:02:39.8]} 21... Qe7 {[%clk 0:01:38.2]} 22. Qd2 {[%clk 0:02:24.5]} 22... f5
{[%clk 0:01:36.9]} 23. Nxc5 {[%clk 0:02:12.3]} 23... Qxc5 {[%clk 0:01:34.6]} 24.
Qf4 {[%clk 0:02:12.7]} 24... Rd6 {[%clk 0:01:12.3]} 25. Rae1 {[%clk 0:02:09.1]}
25... Nf7 {[%clk 0:01:09.6]} 26. Bg3 {[%clk 0:02:09.2]} 26... Qxc2 {[%clk
0:01:02]} 27. Rc1 {[%clk 0:02:01.3]} 27... Qxd3 {[%clk 0:01:00.9]} 28. Rfd1
{[%clk 0:01:53.2]} 28... Qb5 {[%clk 0:00:57.2]} 29. Rxd4 {[%clk 0:01:49.8]}
29... Rxd4 {[%clk 0:00:35.2]} 30. Qxd4 {[%clk 0:01:50]} 30... Ng5 {[%clk
0:00:24.8]} 31. Rc5 {[%clk 0:01:47.5]} 31... Qe2 {[%clk 0:00:24]} 32. Kh1 {[%clk
0:01:31.1]} 32... Nf3 {[%clk 0:00:17.1]} 33. Qd5+ {[%clk 0:01:31.1]} 33... Be6
{[%clk 0:00:15.2]} 34. Qxf3 {[%clk 0:01:31.4]} 34... Qxb2 {[%clk 0:00:15.1]} 35.
Be5 {[%clk 0:01:28.8]} 35... Qxa2 {[%clk 0:00:14.5]} 36. Qg3 {[%clk 0:01:28.5]}
36... Rf7 {[%clk 0:00:13.1]} 37. Rb5 {[%clk 0:01:28.9]} 37... Qb1+ {[%clk
0:00:12.3]} 38. Kh2 {[%clk 0:01:29]} 38... a4 {[%clk 0:00:12.8]} 39. Rb8+ {[%clk
0:01:29.1]} 39... Kh7 {[%clk 0:00:12.7]} 40. Qg6# {[%clk 0:01:29.6]} 1-0

[Event "Late-Titled-Tuesday-Blitz-February-20-2024"]
[Site "Chess.com"]
[Date "2024.02.20"]
[Round "3"]
[White "BogdanDeac"]
[Black "MKlose11"]
[Result "1-0"]
[WhiteElo "3041"]
[BlackElo "2611"]
[TimeControl "180+1"]
[EndTime "14:25:50 PST"]
[Termination "BogdanDeac won by resignation"]

1. d4 {[%clk 0:03:00.9]} 1... Nf6 {[%clk 0:02:57.5]} 2. Nf3 {[%clk 0:03:00]}
2... c5 {[%clk 0:02:56.3]} 3. d5 {[%clk 0:02:59.6]} 3... b5 {[%clk 0:02:56.2]}
4. c4 {[%clk 0:02:56.2]} 4... bxc4 {[%clk 0:02:56]} 5. Nc3 {[%clk 0:02:55.2]}
5... d6 {[%clk 0:02:56.2]} 6. e4 {[%clk 0:02:54.9]} 6... g6 {[%clk 0:02:56.9]}
7. Bxc4 {[%clk 0:02:54.3]} 7... Bg7 {[%clk 0:02:57.6]} 8. h3 {[%clk 0:02:54.7]}
8... O-O {[%clk 0:02:57.8]} 9. O-O {[%clk 0:02:55.3]} 9... Ba6 {[%clk
0:02:57.9]} 10. Nd2 {[%clk 0:02:52.8]} 10... Nfd7 {[%clk 0:02:56.6]} 11. Bxa6
{[%clk 0:01:44]} 11... Nxa6 {[%clk 0:02:55.2]} 12. Qe2 {[%clk 0:01:44.2]} 12...
Nc7 {[%clk 0:02:53.4]} 13. Nc4 {[%clk 0:01:42.4]} 13... Ne5 {[%clk 0:02:36.5]}
14. Nxe5 {[%clk 0:01:24]} 14... Bxe5 {[%clk 0:02:35.9]} 15. Bh6 {[%clk
0:01:23.8]} 15... Re8 {[%clk 0:02:28.3]} 16. Rad1 {[%clk 0:01:23.8]} 16... Rb8
{[%clk 0:02:27.3]} 17. f4 {[%clk 0:01:08.1]} 17... Bd4+ {[%clk 0:02:27.2]} 18.
Kh1 {[%clk 0:01:08.1]} 18... Qd7 {[%clk 0:02:23.6]} 19. f5 {[%clk 0:01:06.8]}
19... Nb5 {[%clk 0:02:01.1]} 20. Qf3 {[%clk 0:00:43.5]} 20... Nxc3 {[%clk
0:01:52.1]} 21. bxc3 {[%clk 0:00:42]} 21... Bf6 {[%clk 0:01:50.5]} 22. fxg6
{[%clk 0:00:41.8]} 22... fxg6 {[%clk 0:01:49.5]} 23. e5 {[%clk 0:00:42]} 23...
dxe5 {[%clk 0:01:43.7]} 24. d6 {[%clk 0:00:37.1]} 24... Qe6 {[%clk 0:01:32.9]}
25. Qc6 {[%clk 0:00:35.6]} 25... Rec8 {[%clk 0:01:26.2]} 26. Qa6 {[%clk
0:00:21.5]} 26... Rb6 {[%clk 0:01:24.4]} 27. d7 {[%clk 0:00:17.6]} 27... Rd8
{[%clk 0:01:18.3]} 28. Qxa7 {[%clk 0:00:16]} 28... Rd6 {[%clk 0:01:15.4]} 29.
Qxc5 {[%clk 0:00:12.6]} 29... R8xd7 {[%clk 0:01:13.4]} 30. Qc8+ {[%clk
0:00:11.5]} 30... Rd8 {[%clk 0:01:12.9]} 31. Qxe6+ {[%clk 0:00:10.4]} 1-0

[Event "Late-Titled-Tuesday-Blitz-February-20-2024"]
[Site "Chess.com"]
[Date "2024.02.20"]
[Round "3"]
[White "MaestroCheck"]
[Black "micke12a"]
[Result "1-0"]
[WhiteElo "2553"]
[BlackElo "2342"]
[TimeControl "180+1"]
[EndTime "14:25:50 PST"]
[Termination "MaestroCheck won on time"]

1. e4 {[%clk 0:03:00.9]} 1... c5 {[%clk 0:02:15]} 2. Nc3 {[%clk 0:03:00.1]} 2...
a6 {[%clk 0:02:13.5]} 3. g3 {[%clk 0:02:58.2]} 3... b5 {[%clk 0:02:09.7]} 4. Bg2
{[%clk 0:02:57.5]} 4... Bb7 {[%clk 0:02:10.3]} 5. Nh3 {[%clk 0:02:52.2]} 5... e6
{[%clk 0:02:10.4]} 6. d3 {[%clk 0:02:49.6]} 6... Nf6 {[%clk 0:02:09]} 7. O-O
{[%clk 0:02:48.9]} 7... d5 {[%clk 0:02:08.3]} 8. exd5 {[%clk 0:02:43.3]} 8...
Nxd5 {[%clk 0:02:08.1]} 9. Nxd5 {[%clk 0:02:33.7]} 9... Bxd5 {[%clk 0:02:07.9]}
10. Nf4 {[%clk 0:02:31.3]} 10... Bxg2 {[%clk 0:02:06.7]} 11. Kxg2 {[%clk
0:02:31.5]} 11... Nc6 {[%clk 0:02:06.8]} 12. Re1 {[%clk 0:02:27.3]} 12... Be7
{[%clk 0:02:05.4]} 13. c3 {[%clk 0:02:26.1]} 13... O-O {[%clk 0:02:04.1]} 14.
Qf3 {[%clk 0:02:26.1]} 14... Qd7 {[%clk 0:02:02]} 15. Be3 {[%clk 0:02:24.9]}
15... Rfd8 {[%clk 0:01:54.8]} 16. Rad1 {[%clk 0:02:23.7]} 16... b4 {[%clk
0:01:51.1]} 17. Qe4 {[%clk 0:02:20.8]} 17... Rab8 {[%clk 0:01:41.7]} 18. Rd2
{[%clk 0:02:13.2]} 18... Bf6 {[%clk 0:01:37]} 19. Ne2 {[%clk 0:02:10.3]} 19...
bxc3 {[%clk 0:01:34.9]} 20. bxc3 {[%clk 0:02:11.2]} 20... Qd5 {[%clk 0:01:27.8]}
21. Qxd5 {[%clk 0:02:03.3]} 21... Rxd5 {[%clk 0:01:25.6]} 22. c4 {[%clk
0:02:03.9]} 22... Rd7 {[%clk 0:01:16]} 23. Bxc5 {[%clk 0:02:01.4]} 23... Ne5
{[%clk 0:01:10.2]} 24. Red1 {[%clk 0:01:59.1]} 24... Rbd8 {[%clk 0:01:03.9]} 25.
Bb6 {[%clk 0:01:58.7]} 25... Rb8 {[%clk 0:01:01.5]} 26. Bd4 {[%clk 0:01:54.9]}
26... a5 {[%clk 0:00:14.7]} 27. Bxe5 {[%clk 0:01:47.8]} 27... Bxe5 {[%clk
0:00:13.9]} 28. d4 {[%clk 0:01:48.4]} 28... Bc7 {[%clk 0:00:13]} 29. d5 {[%clk
0:01:47]} 29... exd5 {[%clk 0:00:12.7]} 30. Rxd5 {[%clk 0:01:47.6]} 30... Rxd5
{[%clk 0:00:12.4]} 31. Rxd5 {[%clk 0:01:48.3]} 31... f6 {[%clk 0:00:10.5]} 32.
Nd4 {[%clk 0:01:48.3]} 32... Rb4 {[%clk 0:00:09.6]} 33. Rd7 {[%clk 0:01:45.7]}
33... Be5 {[%clk 0:00:07.3]} 34. Nf5 {[%clk 0:01:40]} 34... Rxc4 {[%clk
0:00:05.1]} 35. Rxg7+ {[%clk 0:01:39.2]} 35... Kf8 {[%clk 0:00:05]} 36. Rxh7
{[%clk 0:01:39]} 36... Ra4 {[%clk 0:00:05.3]} 37. Ra7 {[%clk 0:01:35]} 37...
Rxa2 {[%clk 0:00:04.9]} 38. h4 {[%clk 0:01:35.6]} 38... a4 {[%clk 0:00:04.8]}
39. h5 {[%clk 0:01:36.3]} 39... a3 {[%clk 0:00:04.1]} 40. h6 {[%clk 0:01:36.9]}
1-0

[Event "Late-Titled-Tuesday-Blitz-February-20-2024"]
[Site "Chess.com"]
[Date "2024.02.20"]
[Round "3"]
[White "giomar27"]
[Black "Sanan_Sjugirov"]
[Result "0-1"]
[WhiteElo "2474"]
[BlackElo "2874"]
[TimeControl "180+1"]
[EndTime "14:25:53 PST"]
[Termination "Sanan_Sjugirov won on time"]

1. d4 {[%clk 0:03:00.9]} 1... Nf6 {[%clk 0:02:56.5]} 2. Nc3 {[%clk 0:03:01]}
2... d5 {[%clk 0:02:56.5]} 3. Bf4 {[%clk 0:03:00.8]} 3... Bf5 {[%clk 0:02:57.1]}
4. e3 {[%clk 0:03:00.4]} 4... c6 {[%clk 0:02:57.7]} 5. Bd3 {[%clk 0:03:00.8]}
5... e6 {[%clk 0:02:58.3]} 6. Bxf5 {[%clk 0:02:59.4]} 6... exf5 {[%clk
0:02:59.2]} 7. Nf3 {[%clk 0:02:59.3]} 7... Be7 {[%clk 0:02:59.1]} 8. O-O {[%clk
0:02:59.1]} 8... O-O {[%clk 0:02:59.2]} 9. h3 {[%clk 0:02:56.5]} 9... Nbd7
{[%clk 0:02:59.7]} 10. Ne5 {[%clk 0:02:56.2]} 10... Re8 {[%clk 0:02:59.9]} 11.
Ne2 {[%clk 0:02:49.5]} 11... g6 {[%clk 0:02:59.9]} 12. Rc1 {[%clk 0:02:44.2]}
12... Nxe5 {[%clk 0:02:58.7]} 13. Bxe5 {[%clk 0:02:43.9]} 13... Ne4 {[%clk
0:02:57.3]} 14. c4 {[%clk 0:02:40.4]} 14... dxc4 {[%clk 0:02:57.3]} 15. Rxc4
{[%clk 0:02:39.7]} 15... Bd6 {[%clk 0:02:57.9]} 16. Bxd6 {[%clk 0:02:36.6]}
16... Nxd6 {[%clk 0:02:58.8]} 17. Rc1 {[%clk 0:02:36]} 17... Qe7 {[%clk
0:02:54.8]} 18. Qb3 {[%clk 0:02:33.3]} 18... Rad8 {[%clk 0:02:55]} 19. Nf4
{[%clk 0:02:30.6]} 19... Ne4 {[%clk 0:02:54.9]} 20. Rfd1 {[%clk 0:02:28.4]}
20... Nf6 {[%clk 0:02:49.9]} 21. Nd3 {[%clk 0:02:26.9]} 21... Nd5 {[%clk
0:02:45.9]} 22. Ne5 {[%clk 0:02:24.4]} 22... Rd6 {[%clk 0:02:44.8]} 23. Nc4
{[%clk 0:02:23.9]} 23... Re6 {[%clk 0:02:44.4]} 24. Na5 {[%clk 0:02:21.5]} 24...
f4 {[%clk 0:02:42.2]} 25. Qxb7 {[%clk 0:02:13.4]} 25... Qg5 {[%clk 0:02:29.3]}
26. Nxc6 {[%clk 0:01:15.5]} 26... fxe3 {[%clk 0:02:25.4]} 27. Ne5 {[%clk
0:01:13.9]} 27... exf2+ {[%clk 0:02:24.6]} 28. Kh1 {[%clk 0:01:03.8]} 28... Rxe5
{[%clk 0:02:16.6]} 29. dxe5 {[%clk 0:01:01.2]} 29... Ne3 {[%clk 0:02:13.6]} 30.
Rf1 {[%clk 0:00:24.5]} 30... Nf5 {[%clk 0:02:12.7]} 31. Qf3 {[%clk 0:00:05]}
31... Ng3+ {[%clk 0:02:12.3]} 32. Kh2 {[%clk 0:00:05]} 32... Nxf1+ {[%clk
0:02:12.3]} 33. Rxf1 {[%clk 0:00:04.6]} 33... Qxe5+ {[%clk 0:02:13.2]} 34. Qg3
{[%clk 0:00:04.6]} 34... Qxb2 {[%clk 0:02:10.5]} 35. Qxf2 {[%clk 0:00:04.5]}
35... Qxf2 {[%clk 0:02:08.6]} 36. Rxf2 {[%clk 0:00:05.4]} 36... Re3 {[%clk
0:02:08.4]} 37. Rb2 {[%clk 0:00:05]} 37... Ra3 {[%clk 0:02:08.3]} 38. Kg1 {[%clk
0:00:05.2]} 38... h5 {[%clk 0:02:08.4]} 39. h4 {[%clk 0:00:04.7]} 39... Kg7
{[%clk 0:02:08.3]} 40. Kf2 {[%clk 0:00:05.2]} 40... Kf6 {[%clk 0:02:07.2]} 41.
Rc2 {[%clk 0:00:05.3]} 41... Ke5 {[%clk 0:02:06.7]} 42. Rc5+ {[%clk 0:00:01.5]}
42... Kd4 {[%clk 0:02:04.9]} 43. Rc7 {[%clk 0:00:01.6]} 43... Rxa2+ {[%clk
0:02:04.8]} 44. Kf3 {[%clk 0:00:02.1]} 44... Ra3+ {[%clk 0:02:03.7]} 45. Kf4
{[%clk 0:00:02]} 45... Ra1 {[%clk 0:01:59.2]} 46. Kg5 {[%clk 0:00:01.4]} 46...
Rg1 {[%clk 0:01:51]} 0-1

[Event "Late-Titled-Tuesday-Blitz-February-20-2024"]
[Site "Chess.com"]
[Date "2024.02.20"]
[Round "3"]
[White "Andrei_Skvortsov"]
[Black "Slovineanu"]
[Result "1-0"]
[WhiteElo "2692"]
[BlackElo "2433"]
[TimeControl "180+1"]
[EndTime "14:25:57 PST"]
[Termination "Andrei_Skvortsov won by resignation"]

1. e4 {[%clk 0:03:00.9]} 1... e5 {[%clk 0:02:58.3]} 2. d4 {[%clk 0:02:59.1]}
2... exd4 {[%clk 0:02:57.3]} 3. Qxd4 {[%clk 0:03:00]} 3... Nc6 {[%clk
0:02:56.4]} 4. Qd3 {[%clk 0:03:00.4]} 4... Nf6 {[%clk 0:02:53.3]} 5. Nc3 {[%clk
0:03:01]} 5... Bb4 {[%clk 0:02:53.1]} 6. Bd2 {[%clk 0:03:01]} 6... O-O {[%clk
0:02:52.7]} 7. O-O-O {[%clk 0:03:01.6]} 7... Re8 {[%clk 0:02:53.2]} 8. Nge2
{[%clk 0:03:01.9]} 8... Ne5 {[%clk 0:02:18]} 9. Qg3 {[%clk 0:02:58.8]} 9... Ng6
{[%clk 0:01:35.1]} 10. f3 {[%clk 0:02:50.2]} 10... a5 {[%clk 0:01:28.6]} 11. Bg5
{[%clk 0:02:45.4]} 11... a4 {[%clk 0:01:22.2]} 12. a3 {[%clk 0:02:39.7]} 12...
Be7 {[%clk 0:01:21.3]} 13. h4 {[%clk 0:02:36.3]} 13... d6 {[%clk 0:01:15.7]} 14.
Qf2 {[%clk 0:02:28.6]} 14... Nh5 {[%clk 0:01:10.5]} 15. Bxe7 {[%clk 0:02:26.4]}
15... Qxe7 {[%clk 0:01:10.7]} 16. g3 {[%clk 0:02:23.2]} 16... b5 {[%clk
0:00:51.7]} 17. Nd4 {[%clk 0:02:13.7]} 17... b4 {[%clk 0:00:46.2]} 18. Nc6
{[%clk 0:02:13.7]} 18... Qf6 {[%clk 0:00:41.8]} 19. Nd5 {[%clk 0:02:10.2]} 19...
Qe6 {[%clk 0:00:21.4]} 20. Nxc7 {[%clk 0:02:02.1]} 20... Qa2 {[%clk 0:00:20.4]}
21. Nxb4 {[%clk 0:02:02.4]} 21... Qa1+ {[%clk 0:00:19.7]} 22. Kd2 {[%clk
0:02:03]} 22... Qxb2 {[%clk 0:00:20.2]} 23. Nxa8 {[%clk 0:01:57.2]} 23... Qxa3
{[%clk 0:00:20.3]} 24. Rb1 {[%clk 0:01:53.6]} 24... Ne5 {[%clk 0:00:17.6]} 25.
Be2 {[%clk 0:01:47.7]} 25... Ba6 {[%clk 0:00:16.6]} 26. Nxa6 {[%clk 0:01:40.5]}
26... Rxa8 {[%clk 0:00:16.8]} 27. Qe3 {[%clk 0:01:37.9]} 27... Qxe3+ {[%clk
0:00:12.2]} 28. Kxe3 {[%clk 0:01:37.1]} 28... Nxg3 {[%clk 0:00:12.8]} 29. Rhg1
{[%clk 0:01:34]} 29... Nxe2 {[%clk 0:00:10.7]} 30. Kxe2 {[%clk 0:01:34.6]} 30...
h5 {[%clk 0:00:09.9]} 31. Nc7 {[%clk 0:01:34.3]} 31... Rc8 {[%clk 0:00:09.6]}
32. Rb7 {[%clk 0:01:32.9]} 32... a3 {[%clk 0:00:09.6]} 33. Ra1 {[%clk
0:01:31.2]} 33... Nc4 {[%clk 0:00:08.6]} 34. Nd5 {[%clk 0:01:24.4]} 34... Kh7
{[%clk 0:00:03.8]} 35. Rc7 {[%clk 0:01:21.8]} 1-0

[Event "Late-Titled-Tuesday-Blitz-February-20-2024"]
[Site "Chess.com"]
[Date "2024.02.20"]
[Round "3"]
[White "MajorCoast"]
[Black "ExchangeAB"]
[Result "0-1"]
[WhiteElo "2210"]
[BlackElo "2453"]
[TimeControl "180+1"]
[EndTime "14:25:57 PST"]
[Termination "ExchangeAB won by checkmate"]

1. d4 {[%clk 0:03:00.9]} 1... d5 {[%clk 0:03:00.1]} 2. Bf4 {[%clk 0:02:57.9]}
2... Nf6 {[%clk 0:03:00]} 3. e3 {[%clk 0:02:58.3]} 3... c5 {[%clk 0:03:00.5]} 4.
c3 {[%clk 0:02:58.5]} 4... Nc6 {[%clk 0:03:00.8]} 5. Nd2 {[%clk 0:02:57.3]} 5...
Bf5 {[%clk 0:03:00.5]} 6. Ngf3 {[%clk 0:02:53.7]} 6... e6 {[%clk 0:03:00.2]} 7.
Nh4 {[%clk 0:02:50.9]} 7... Bg4 {[%clk 0:02:59.7]} 8. Qb3 {[%clk 0:02:45.6]}
8... Qb6 {[%clk 0:02:58.7]} 9. h3 {[%clk 0:02:45.2]} 9... Bh5 {[%clk 0:02:56.5]}
10. g4 {[%clk 0:02:45]} 10... Bg6 {[%clk 0:02:56.5]} 11. Nxg6 {[%clk 0:02:45.2]}
11... hxg6 {[%clk 0:02:57.4]} 12. Bg2 {[%clk 0:02:44.3]} 12... Rc8 {[%clk
0:02:47.7]} 13. g5 {[%clk 0:02:35.5]} 13... Nd7 {[%clk 0:02:45.9]} 14. O-O
{[%clk 0:02:26.5]} 14... Na5 {[%clk 0:02:44.1]} 15. Qxb6 {[%clk 0:02:18.3]}
15... axb6 {[%clk 0:02:42.6]} 16. Nb3 {[%clk 0:02:08.6]} 16... Nc4 {[%clk
0:02:37.7]} 17. Rfb1 {[%clk 0:01:57]} 17... Bd6 {[%clk 0:02:37.2]} 18. Bxd6
{[%clk 0:01:52.4]} 18... Nxd6 {[%clk 0:02:38.1]} 19. Nd2 {[%clk 0:01:52.9]}
19... Rh5 {[%clk 0:02:29.6]} 20. f4 {[%clk 0:01:50.8]} 20... Nf5 {[%clk
0:02:28.9]} 21. Kf2 {[%clk 0:01:49.4]} 21... Ke7 {[%clk 0:02:28.9]} 22. Nf3
{[%clk 0:01:45.9]} 22... Rhh8 {[%clk 0:02:26.4]} 23. a4 {[%clk 0:01:37.7]} 23...
Ra8 {[%clk 0:02:25.3]} 24. b4 {[%clk 0:01:34.8]} 24... c4 {[%clk 0:02:21.2]} 25.
a5 {[%clk 0:01:32.2]} 25... b5 {[%clk 0:02:17.6]} 26. Ra2 {[%clk 0:01:19.7]}
26... Nd6 {[%clk 0:02:15.9]} 27. Ng1 {[%clk 0:01:11.2]} 27... Ra6 {[%clk
0:02:13.9]} 28. Re2 {[%clk 0:01:05.9]} 28... Rha8 {[%clk 0:02:13.3]} 29. e4
{[%clk 0:01:03.9]} 29... dxe4 {[%clk 0:02:12.6]} 30. Bxe4 {[%clk 0:01:04.4]}
30... Nxe4+ {[%clk 0:02:12.7]} 31. Rxe4 {[%clk 0:01:05.3]} 31... Kd6 {[%clk
0:02:10]} 32. Nf3 {[%clk 0:01:00.2]} 32... b6 {[%clk 0:02:09.8]} 33. axb6 {[%clk
0:00:58.4]} 33... Nxb6 {[%clk 0:02:10.7]} 34. Ne5 {[%clk 0:00:57.8]} 34... R8a7
{[%clk 0:02:10.8]} 35. h4 {[%clk 0:00:54.4]} 35... Ra2+ {[%clk 0:02:08.9]} 36.
Kg3 {[%clk 0:00:53.8]} 36... Nd5 {[%clk 0:02:09]} 37. Rc1 {[%clk 0:00:41.6]}
37... Rb2 {[%clk 0:01:26.1]} 38. Ree1 {[%clk 0:00:29.2]} 38... f6 {[%clk
0:01:18.9]} 39. Nxg6 {[%clk 0:00:20.8]} 39... Raa2 {[%clk 0:01:18.2]} 40. Nf8
{[%clk 0:00:17.6]} 40... Rg2+ {[%clk 0:01:15.2]} 41. Kh3 {[%clk 0:00:18.1]}
41... Nxf4# {[%clk 0:01:14.8]} 0-1

[Event "Late-Titled-Tuesday-Blitz-February-20-2024"]
[Site "Chess.com"]
[Date "2024.02.20"]
[Round "3"]
[White "winniethepooh04"]
[Black "David_George21"]
[Result "1/2-1/2"]
[WhiteElo "2556"]
[BlackElo "2381"]
[TimeControl "180+1"]
[EndTime "14:25:59 PST"]
[Termination "Game drawn by repetition"]

1. d4 {[%clk 0:02:53.9]} 1... Nf6 {[%clk 0:02:59]} 2. Nf3 {[%clk 0:02:54.5]}
2... e6 {[%clk 0:02:58.4]} 3. Bf4 {[%clk 0:02:55.1]} 3... c5 {[%clk 0:02:57.6]}
4. e3 {[%clk 0:02:54.3]} 4... Nc6 {[%clk 0:02:56.8]} 5. c3 {[%clk 0:02:54.6]}
5... d5 {[%clk 0:02:53.3]} 6. Nbd2 {[%clk 0:02:54.3]} 6... Bd6 {[%clk
0:02:52.8]} 7. Bg3 {[%clk 0:02:54.8]} 7... O-O {[%clk 0:02:52]} 8. Bd3 {[%clk
0:02:54.8]} 8... h6 {[%clk 0:02:51.1]} 9. Qe2 {[%clk 0:02:54.7]} 9... Qe7 {[%clk
0:02:45.9]} 10. dxc5 {[%clk 0:02:54.8]} 10... Bxc5 {[%clk 0:02:45.1]} 11. e4
{[%clk 0:02:55.4]} 11... dxe4 {[%clk 0:02:38.9]} 12. Nxe4 {[%clk 0:02:55.2]}
12... Nxe4 {[%clk 0:02:39.4]} 13. Bxe4 {[%clk 0:02:44.4]} 13... f5 {[%clk
0:02:18.4]} 14. Bxc6 {[%clk 0:02:40.8]} 14... bxc6 {[%clk 0:02:18]} 15. Be5
{[%clk 0:02:39.2]} 15... a5 {[%clk 0:02:15.5]} 16. O-O {[%clk 0:02:34.4]} 16...
Ba6 {[%clk 0:02:14.3]} 17. c4 {[%clk 0:02:34.9]} 17... Rfd8 {[%clk 0:02:07.3]}
18. Rad1 {[%clk 0:02:33.7]} 18... Rxd1 {[%clk 0:02:02.6]} 19. Rxd1 {[%clk
0:02:32.3]} 19... Rd8 {[%clk 0:02:02.7]} 20. b3 {[%clk 0:02:30.8]} 20... a4
{[%clk 0:01:52.3]} 21. h3 {[%clk 0:02:19.7]} 21... axb3 {[%clk 0:01:51.8]} 22.
axb3 {[%clk 0:02:20.6]} 22... Rxd1+ {[%clk 0:01:37.5]} 23. Qxd1 {[%clk
0:02:17.8]} 23... Qa7 {[%clk 0:01:37.7]} 24. Qe2 {[%clk 0:02:13.1]} 24... Qb6
{[%clk 0:01:34.7]} 25. Ba1 {[%clk 0:02:07.9]} 25... Bc8 {[%clk 0:01:23.6]} 26.
Qe5 {[%clk 0:01:59.9]} 26... Bxf2+ {[%clk 0:01:03.6]} 27. Kf1 {[%clk 0:01:58.7]}
27... Qa7 {[%clk 0:01:04.2]} 28. Qxg7+ {[%clk 0:01:51]} 28... Qxg7 {[%clk
0:01:03.2]} 29. Bxg7 {[%clk 0:01:51.9]} 29... Kxg7 {[%clk 0:01:03.8]} 30. Kxf2
{[%clk 0:01:52.3]} 30... Kf6 {[%clk 0:00:58]} 31. Ke3 {[%clk 0:01:50.3]} 31...
e5 {[%clk 0:00:57.6]} 32. g3 {[%clk 0:01:49.4]} 32... Be6 {[%clk 0:00:55.3]} 33.
Ne1 {[%clk 0:01:47.6]} 33... h5 {[%clk 0:00:49.7]} 34. h4 {[%clk 0:01:47.1]}
34... e4 {[%clk 0:00:45.9]} 35. Nc2 {[%clk 0:01:44.6]} 35... c5 {[%clk
0:00:44.2]} 36. Na3 {[%clk 0:01:42.9]} 36... Ke5 {[%clk 0:00:43.5]} 37. Nb5
{[%clk 0:01:42.1]} 37... Bd7 {[%clk 0:00:43.2]} 38. Nc3 {[%clk 0:01:40.6]} 38...
Bc6 {[%clk 0:00:42.8]} 39. Ne2 {[%clk 0:01:35.8]} 39... Be8 {[%clk 0:00:39]} 40.
Nf4 {[%clk 0:01:35.6]} 40... Bf7 {[%clk 0:00:39]} 41. Nh3 {[%clk 0:01:33]} 41...
Be8 {[%clk 0:00:34.2]} 42. Ng5 {[%clk 0:01:31.5]} 42... Bg6 {[%clk 0:00:34.1]}
43. Nh3 {[%clk 0:01:30.7]} 43... Be8 {[%clk 0:00:32.5]} 44. Ng1 {[%clk
0:01:26.3]} 44... Bc6 {[%clk 0:00:27.9]} 45. Ne2 {[%clk 0:01:26.8]} 45... Be8
{[%clk 0:00:27.7]} 46. Nc3 {[%clk 0:01:25]} 46... Bc6 {[%clk 0:00:27.3]} 47. Ne2
{[%clk 0:01:23.7]} 1/2-1/2

[Event "Late-Titled-Tuesday-Blitz-February-20-2024"]
[Site "Chess.com"]
[Date "2024.02.20"]
[Round "3"]
[White "Mr_Heisenberg13"]
[Black "CRObliterator"]
[Result "1-0"]
[WhiteElo "2846"]
[BlackElo "2371"]
[TimeControl "180+1"]
[EndTime "14:26:01 PST"]
[Termination "Mr_Heisenberg13 won by resignation"]

1. e4 {[%clk 0:03:00.9]} 1... e5 {[%clk 0:02:57.7]} 2. Nf3 {[%clk 0:03:00.8]}
2... Nc6 {[%clk 0:02:57.8]} 3. Bc4 {[%clk 0:03:01.1]} 3... Bc5 {[%clk
0:02:56.5]} 4. c3 {[%clk 0:03:01.4]} 4... d6 {[%clk 0:02:56.4]} 5. d4 {[%clk
0:03:01.4]} 5... exd4 {[%clk 0:02:56.5]} 6. cxd4 {[%clk 0:03:01.4]} 6... Bb4+
{[%clk 0:02:57]} 7. Nc3 {[%clk 0:03:01.6]} 7... Nf6 {[%clk 0:02:55.3]} 8. O-O
{[%clk 0:03:01.5]} 8... Bxc3 {[%clk 0:02:45.8]} 9. bxc3 {[%clk 0:03:02.4]} 9...
Nxe4 {[%clk 0:02:45.9]} 10. d5 {[%clk 0:03:02]} 10... Ne7 {[%clk 0:02:40.2]} 11.
Qd4 {[%clk 0:03:00.1]} 11... Nf6 {[%clk 0:02:31.9]} 12. Bg5 {[%clk 0:03:00]}
12... Ng6 {[%clk 0:02:25.4]} 13. Rfe1+ {[%clk 0:02:59]} 13... Kf8 {[%clk
0:02:25.5]} 14. Bb5 {[%clk 0:02:51.3]} 14... Bd7 {[%clk 0:02:20.4]} 15. Bxd7
{[%clk 0:02:50.1]} 15... Qxd7 {[%clk 0:02:15.8]} 16. Bxf6 {[%clk 0:02:50.5]}
16... gxf6 {[%clk 0:02:16.3]} 17. Qxf6 {[%clk 0:02:51.4]} 17... Re8 {[%clk
0:02:14.3]} 18. Ng5 {[%clk 0:02:49.6]} 18... Kg8 {[%clk 0:01:56.5]} 19. f4
{[%clk 0:02:29.1]} 19... h6 {[%clk 0:01:54.2]} 20. Ne6 {[%clk 0:02:28.2]} 20...
Rh7 {[%clk 0:01:40.7]} 21. Re3 {[%clk 0:02:08.6]} 21... fxe6 {[%clk 0:01:26.2]}
22. Qxg6+ {[%clk 0:02:08.4]} 22... Rg7 {[%clk 0:01:25.9]} 23. dxe6 {[%clk
0:02:08.8]} 23... Qc6 {[%clk 0:00:55.7]} 24. Qe4 {[%clk 0:01:54.9]} 24... d5
{[%clk 0:00:52.1]} 25. Qf3 {[%clk 0:01:35.4]} 25... Rxe6 {[%clk 0:00:50.8]} 26.
Rd3 {[%clk 0:01:35.9]} 26... Re4 {[%clk 0:00:41.4]} 27. Rad1 {[%clk 0:01:31.9]}
27... Qb6+ {[%clk 0:00:33.5]} 28. Kh1 {[%clk 0:01:27.9]} 28... c6 {[%clk
0:00:30.1]} 29. f5 {[%clk 0:01:25.6]} 29... Reg4 {[%clk 0:00:14.5]} 30. f6
{[%clk 0:01:21.2]} 30... R7g6 {[%clk 0:00:14]} 31. f7+ {[%clk 0:01:20.7]} 31...
Kf8 {[%clk 0:00:14.5]} 32. Re3 {[%clk 0:01:20.7]} 32... Re4 {[%clk 0:00:11.3]}
33. Rxe4 {[%clk 0:01:17.9]} 33... dxe4 {[%clk 0:00:12.2]} 34. Qxe4 {[%clk
0:01:18.3]} 1-0